bitfinex/quotes_SOLUSD_20250917
["timestamp","ask_amount","ask_price","bid_price","bid_amount"]
[1758088311150,131.7,234.72,234.63,13.59559401]
[1758088311151,0.66,234.64,234.63,13.59559401]
[1758088311352,1.72613565,234.71,234.67,13.59559401]
[1758088311552,0.1,234.75,234.69,13.59559401]
[1758088311775,0.66,234.74,234.69,13.59559401]
[1758088311976,0.66,234.73,234.69,13.59559401]
[1758088312186,0.66,234.72,234.69,13.59559401]
[1758088312477,0.66,234.71,234.69,13.59559401]
[1758088312675,0.66,234.7,234.69,13.59559401]
[1758088313779,0.66,234.7,234.66,13.59559401]
[1758088314079,0.66,234.69,234.66,13.59559401]
[1758088314374,0.66,234.68,234.66,13.59559401]
[1758088314767,0.66,234.7,234.66,13.59559401]
[1758088314961,0.66,234.69,234.66,13.59559401]
[1758088315360,0.66,234.69,234.66,17.85705402]
[1758088315554,0.1,234.75,234.66,17.85705402]
[1758088315555,0.68,234.71,234.66,0.28432314]
[1758088315867,0.68,234.7,234.66,0.28432314]
[1758088316354,0.66,234.69,234.66,0.28432314]
[1758088316563,0.66,234.68,234.65,48.87559401]
[1758088316780,0.66,234.67,234.63,13.59559401]
[1758088317088,0.66,234.66,234.65,13.59559401]
[1758088317586,0.1,234.75,234.74,39.59559401]
[1758088317756,0.1,234.75,234.74,13.59559401]
[1758088317970,0.76,234.75,234.74,48.85559401]
[1758088318157,0.76,234.75,234.74,13.59559401]
[1758088320180,0.76,234.75,234.68,13.59559401]
[1758088320369,0.1,234.75,234.72,2.06402903]
[1758088320574,0.1,234.75,234.74,13.59559401]
[1758088320883,0.1,234.75,234.74,15.65962304]
[1758088321573,0.1,234.75,234.74,13.59559401]
[1758088322484,0.76,234.75,234.69,13.59559401]
[1758088322678,0.66,234.74,234.68,13.59559401]
[1758088322863,0.66,234.74,234.71,1.7061571]
[1758088323067,0.66,234.73,234.72,13.59559401]
[1758088323391,0.1,234.75,234.69,15.65962304]
[1758088323584,0.1,234.75,234.69,13.59559401]
[1758088323761,0.66,234.74,234.69,13.59559401]
[1758088324085,0.66,234.73,234.68,13.59559401]
[1758088324266,0.66,234.72,234.68,13.59559401]
[1758088325271,0.76,234.75,234.68,13.59559401]
[1758088325685,0.76,234.75,234.67,35.22]
[1758088325686,0.66,234.74,234.65,1.70659385]
[1758088325864,0.66,234.73,234.66,13.59559401]
[1758088326063,0.66,234.73,234.64,13.59559401]
[1758088326289,131.7,234.74,234.68,13.59559401]
[1758088326973,0.66,234.73,234.66,13.87991715]
[1758088327590,0.66,234.73,234.66,53.34137584]
[1758088327768,0.1,234.75,234.68,13.59559401]
[1758088328399,0.1,234.75,234.7,15.65962304]
[1758088328576,0.1,234.75,234.72,13.59559401]
[1758088329591,0.1,234.75,234.72,15.65962304]
[1758088329783,0.1,234.75,234.72,16.34962304]
[1758088330665,0.1,234.75,234.73,7.01424289]
[1758088330874,0.1,234.75,234.74,13.59559401]
[1758088331167,0.1,234.75,234.74,15.65962304]
[1758088331368,0.1,234.75,234.74,16.63394618]
[1758088331571,0.1,234.75,234.74,14.56991715]
[1758088332678,0.1,234.75,234.74,13.87991715]
[1758088333080,0.1,234.75,234.74,51.79394618]
[1758088333382,0.1,234.75,234.74,53.49988498]
[1758088334180,0.1,234.75,234.74,51.43585595]
[1758088334490,0.1,234.75,234.74,42.63394618]
[1758088334695,0.1,234.75,234.74,44.33988498]
[1758088334898,0.03,234.78,234.77,39.59559401]
[1758088335100,0.03,234.78,234.77,41.94394618]
[1758088336196,0.03,234.78,234.77,39.87991715]
[1758088336374,0.03,234.78,234.77,41.94394618]
[1758088336975,0.03,234.78,234.77,39.87991715]
[1758088337280,0.03,234.78,234.77,13.87991715]
[1758088337493,0.03,234.78,234.77,13.59559401]
[1758088337683,0.69,234.78,234.75,13.59559401]
[1758088337886,0.66,234.77,234.75,13.59559401]
[1758088338196,0.66,234.76,234.74,13.59559401]
[1758088338497,0.03,234.78,234.74,13.59559401]
[1758088338797,0.66,234.77,234.74,13.59559401]
[1758088340797,0.66,234.76,234.74,13.59559401]
[1758088341002,0.66,234.75,234.72,13.59559401]
[1758088341205,0.03,234.78,234.72,13.59559401]
[1758088341411,0.66,234.74,234.72,13.59559401]
[1758088341592,0.66,234.73,234.7,21.09336915]
[1758088341786,131.7,234.82,234.7,21.09336915]
[1758088341787,52.43401414,234.82,234.7,21.09336915]
[1758088342110,35.12,234.81,234.69,21.32733541]
[1758088342478,22.33318803,234.81,234.69,21.32733541]
[1758088342794,5.28410146,234.81,234.69,21.32733541]
[1758088343678,26.0,234.78,234.69,21.32733541]
[1758088343881,5.28410146,234.81,234.69,21.32733541]
[1758088344893,1e-08,234.8,234.67,21.38372403]
[1758088345199,1e-08,234.8,234.63,34.83182391]
[1758088345400,192.08470984,234.82,234.63,34.83182391]
[1758088345401,60.38470984,234.82,234.63,34.83182391]
[1758088345581,35.1,234.81,234.63,34.83182391]
[1758088345987,57.86053154,234.82,234.66,13.59559401]
[1758088346189,57.86053154,234.82,234.63,13.59559401]
[1758088346190,35.1,234.81,234.67,56.48372403]
[1758088346385,70.68053154,234.82,234.67,56.48372403]
[1758088346680,1e-08,234.8,234.67,76.48372403]
[1758088346884,35.1,234.81,234.67,76.48372403]
[1758088347185,30.87091738,234.81,234.65,21.28236206]
[1758088347394,12.82,234.81,234.65,21.28236206]
[1758088347896,0.06,234.8,234.65,21.28236206]
[1758088348087,0.06,234.79,234.65,21.28236206]
[1758088348428,12.82,234.81,234.65,21.28236206]
[1758088348603,13.59559401,234.81,234.65,21.28236206]
[1758088348813,26.41559401,234.81,234.65,21.28236206]
[1758088349102,12.82,234.81,234.66,13.59559401]
[1758088349279,12.82,234.81,234.67,21.38372403]
[1758088349478,33.63144892,234.82,234.69,21.32733541]
[1758088349684,131.7,234.81,234.74,21.88260379]
[1758088349882,114.65091738,234.81,234.75,35.08]
[1758088351199,26.0,234.78,234.75,35.08]
[1758088357311,38.82,234.78,234.75,35.08]
[1758088357608,38.82,234.78,234.75,35.14]
[1758088358002,26.03,234.78,234.75,35.14]
[1758088359290,26.0,234.77,234.75,35.14]
[1758088365903,26.0,234.76,234.75,35.14]
[1758088366108,79.51091738,234.74,234.72,0.06]
[1758088366886,0.28432314,234.77,234.72,0.06]
[1758088367089,13.87991715,234.77,234.72,0.06]
[1758088367291,26.0,234.74,234.72,0.06]
[1758088368111,38.82,234.74,234.72,0.06]
[1758088373422,38.85,234.78,234.72,0.06]
[1758088373624,26.03,234.78,234.73,0.68]
[1758088374521,26.0,234.76,234.72,0.06]
[1758088375510,0.03,234.78,234.73,0.7]
[1758088375721,0.03,234.78,234.74,0.66]
[1758088376435,0.03,234.76,234.74,0.66]
[1758088376609,0.03,234.76,234.75,0.66]
[1758088378241,0.03,234.78,234.75,0.66]
[1758088380304,0.03,234.78,234.76,34.94]
[1758088380723,0.03,234.78,234.77,0.66]
[1758088381836,26.03,234.78,234.77,0.66]
[1758088383631,26.03,234.78,234.77,14.25559401]
[1758088384247,0.03,234.78,234.77,14.25559401]
[1758088384418,0.03,234.78,234.77,34.25559401]
[1758088384932,26.03,234.78,234.77,34.25559401]
[1758088387114,26.03,234.78,234.77,34.53991715]
[1758088389639,0.03,234.78,234.77,34.53991715]
[1758088390346,0.03,234.81,234.8,33.59559401]
[1758088390645,32.91144892,234.82,234.81,13.87991715]
[1758088390940,32.91144892,234.82,234.81,14.53991715]
[1758088393142,32.91144892,234.82,234.81,15.86002303]
[1758088393321,32.91144892,234.82,234.81,28.57749945]
[1758088393522,7.35025706,234.82,234.81,28.57749945]
[1758088393821,294.91091738,234.98,234.92,13.59559401]
[1758088394017,26.0,234.95,234.93,34.86]
[1758088394326,0.2,234.99,234.94,34.25559401]
[1758088394720,26.0,234.97,234.95,0.66]
[1758088395052,0.2,234.99,234.96,35.52]
[1758088395238,26.0,234.97,234.96,35.52]
[1758088395419,26.0,234.97,234.96,49.11559401]
[1758088396139,0.2,234.99,234.96,49.11559401]
[1758088396319,26.0,234.97,234.96,49.11559401]
[1758088397531,26.0,234.97,234.96,49.09559401]
[1758088397729,26.0,234.97,234.96,14.25559401]
[1758088397937,26.0,234.97,234.96,49.09559401]
[1758088399220,26.0,234.97,234.96,14.25559401]
[1758088399551,26.0,234.97,234.96,49.09559401]
[1758088399758,26.0,234.97,234.93,13.59559401]
[1758088399943,26.0,234.97,234.94,34.82]
[1758088400259,26.0,234.97,234.95,0.66]
[1758088400542,26.0,234.97,234.96,13.59559401]
[1758088400743,26.0,234.97,234.95,0.66]
[1758088400966,26.0,234.97,234.96,34.82]
[1758088402844,26.0,234.97,234.96,34.8]
[1758088405440,26.0,234.97,234.96,35.48]
[1758088405632,26.0,234.97,234.96,34.8]
[1758088407134,26.0,234.97,234.96,35.48]
[1758088408057,26.0,234.97,234.96,34.8]
[1758088408854,26.68,234.97,234.93,13.59559401]
[1758088409155,26.68,234.97,234.94,34.78]
[1758088409755,26.68,234.97,234.93,13.59559401]
[1758088409968,26.68,234.97,234.94,34.78]
[1758088410258,26.0,234.97,234.94,34.78]
[1758088412351,0.68,234.96,234.9,20.0]
[1758088412661,26.0,234.93,234.91,48.35559401]
[1758088412845,26.0,234.93,234.91,49.03559401]
[1758088413336,26.68,234.93,234.9,20.0]
[1758088413540,26.68,234.93,234.91,34.76]
[1758088413760,26.68,234.93,234.89,13.59559401]
[1758088413944,0.68,234.92,234.9,34.74]
[1758088414252,26.0,234.93,234.91,34.74]
[1758088414454,26.0,234.93,234.92,34.74]
[1758088414644,26.68,234.93,234.92,34.74]
[1758088417062,26.68,234.93,234.86,20.68]
[1758088417250,26.0,234.93,234.87,48.33559401]
[1758088417449,26.0,234.93,234.87,49.01559401]
[1758088423668,26.0,234.93,234.88,0.68]
[1758088423994,79.51091738,234.96,234.91,13.59559401]
[1758088424155,79.51091738,234.96,234.93,20.0]
[1758088424476,79.51091738,234.96,234.94,0.68]
[1758088424779,79.51091738,234.96,234.95,34.7]
[1758088425075,79.51091738,234.96,234.95,35.38]
[1758088425964,79.51091738,234.96,234.95,34.7]
[1758088427472,79.51091738,234.96,234.91,33.59559401]
[1758088427676,26.0,234.93,234.92,48.95559401]
[1758088428168,26.0,234.93,234.92,34.68]
[1758088432285,26.68,234.93,234.92,34.68]
[1758088432861,26.68,234.93,234.87,14.27559401]
[1758088433061,26.68,234.93,234.88,4.24499022]
[1758088433278,26.68,234.93,234.88,4.92499022]
[1758088433669,26.68,234.93,234.89,5.06691664]
[1758088433878,26.68,234.93,234.9,34.66]
[1758088434072,26.68,234.93,234.88,0.68]
[1758088434667,0.68,234.92,234.86,13.59559401]
[1758088435051,0.68,234.92,234.8,20.06]
[1758088435052,26.0,234.88,234.8,20.06]
[1758088435267,0.72,234.87,234.81,34.66]
[1758088435479,0.72,234.87,234.81,54.66]
[1758088436684,26.0,234.84,234.8,1e-08]
[1758088436982,26.0,234.81,234.8,1e-08]
[1758088437776,30.2587624,234.81,234.8,1e-08]
[1758088444276,30.9787624,234.81,234.8,1e-08]
[1758088445068,30.2587624,234.81,234.8,1e-08]
[1758088447676,30.2587624,234.81,234.8,0.68000001]
[1758088447877,30.2587624,234.81,234.8,1e-08]
[1758088448196,4.2587624,234.81,234.8,1e-08]
[1758088450797,4.2887624,234.81,234.8,1e-08]
[1758088451089,4.2887624,234.81,234.8,0.68000001]
[1758088451474,4.2887624,234.81,234.8,1e-08]
[1758088453384,4.2887624,234.81,234.8,0.68000001]
[1758088453779,4.2887624,234.81,234.8,1e-08]
[1758088454718,5.0087624,234.81,234.8,1e-08]
[1758088455895,26.0,234.78,234.77,1e-08]
[1758088456296,26.72,234.78,234.77,1e-08]
[1758088456683,26.0,234.78,234.77,1e-08]
[1758088457904,26.0,234.78,234.77,0.68000001]
[1758088458081,0.03,234.81,234.79,20.0]
[1758088458285,0.03,234.81,234.8,13.87991715]
[1758088458500,0.03,234.81,234.8,14.55991715]
[1758088459101,0.03,234.81,234.8,14.27559401]
[1758088459504,0.03,234.81,234.8,14.55991715]
[1758088466902,0.03,234.81,234.8,49.07991715]
[1758088473714,0.03,234.81,234.8,54.61669888]
[1758088474096,0.03,234.81,234.8,67.40905758]
[1758088474299,0.03,234.81,234.8,31.61121963]
[1758088474620,0.03,234.81,234.8,67.40905758]
[1758088474998,0.03,234.84,234.83,33.87991715]
[1758088475204,0.03,234.84,234.83,68.35991715]
[1758088475423,0.03,234.84,234.83,70.3777551]
[1758088475734,0.03,234.84,234.83,81.01861095]
[1758088477032,0.03,234.84,234.83,85.27701064]
[1758088477401,0.03,234.84,234.83,34.29559401]
[1758088477607,0.03,234.84,234.83,70.07343196]
[1758088477825,0.03,234.84,234.83,70.3577551]
[1758088478130,0.03,234.84,234.83,69.03991715]
[1758088478311,0.03,234.84,234.83,70.3577551]
[1758088478513,0.03,234.84,234.83,74.61439185]
[1758088480342,0.03,234.84,234.83,38.8365539]
[1758088480527,0.03,234.84,234.83,73.2765539]
[1758088481025,0.03,234.84,234.83,69.01991715]
[1758088481225,0.03,234.84,234.83,70.3377551]
[1758088481430,0.03,234.84,234.83,69.01991715]
[1758088482613,0.03,234.84,234.83,33.87991715]
[1758088482840,0.03,234.84,234.83,33.59559401]
[1758088483215,0.75,234.84,234.83,68.03559401]
[1758088483628,0.75,234.84,234.83,68.31991715]
[1758088484743,0.03,234.84,234.83,68.31991715]
[1758088486529,0.03,234.84,234.83,33.87991715]
[1758088486733,0.03,234.84,234.83,68.29991715]
[1758088490867,0.03,234.84,234.83,68.99991715]
[1758088491349,0.03,234.84,234.83,68.29991715]
[1758088492238,0.75,234.84,234.83,68.27991715]
[1758088494540,0.03,234.84,234.83,68.27991715]
[1758088496165,0.03,234.84,234.83,68.99991715]
[1758088498169,0.03,234.84,234.83,74.57615479]
[1758088498971,0.03,234.84,234.83,76.28151174]
[1758088501253,0.03,234.84,234.83,76.24151174]
[1758088506489,0.03,234.84,234.83,74.92367379]
[1758088506783,0.03,234.84,234.83,76.24151174]
[1758088507983,0.03,234.84,234.83,71.98311205]
[1758088508166,0.03,234.84,234.83,36.90311205]
[1758088508371,0.03,234.84,234.83,69.9052741]
[1758088509057,0.03,234.84,234.83,74.16367379]
[1758088509391,0.03,234.87,234.86,33.87991715]
[1758088509563,0.03,234.87,234.86,68.17991715]
[1758088509887,0.68,234.87,234.86,68.17991715]
[1758088510368,0.03,234.87,234.86,68.17991715]
[1758088511473,0.68,234.87,234.86,68.17991715]
[1758088511670,0.03,234.87,234.86,68.17991715]
[1758088516968,0.68,234.87,234.86,33.87991715]
[1758088517274,0.68,234.87,234.86,68.15991715]
[1758088517275,0.03,234.87,234.86,68.15991715]
[1758088518283,0.03,234.87,234.86,68.87991715]
[1758088518485,0.03,234.87,234.86,73.13777289]
[1758088518678,0.03,234.87,234.86,74.45561084]
[1758088519477,10.83900495,234.99,234.95,33.87991715]
[1758088519478,26.0,234.97,234.95,33.87991715]
[1758088519677,26.0,234.97,234.96,47.85559401]
[1758088520192,26.65,234.97,234.96,47.85559401]
[1758088520902,30.90586245,234.97,234.96,47.85559401]
[1758088521271,26.0,234.97,234.96,48.85991715]
[1758088521471,0.2,234.99,234.98,33.59559401]
[1758088521707,0.2,234.99,234.98,68.13991715]
[1758088521879,0.2,234.99,234.98,69.4577551]
[1758088522384,0.2,234.99,234.98,70.1777551]
[1758088522584,0.2,234.99,234.98,69.4577551]
[1758088522791,0.2,234.99,234.98,68.13991715]
[1758088523581,0.85,234.99,234.98,68.13991715]
[1758088524183,0.2,234.99,234.98,68.13991715]
[1758088524592,0.2,234.99,234.98,80.85713521]
[1758088525309,1000.0,235.0,234.99,13.87991715]
[1758088525310,925.59716633,235.0,234.99,13.87991715]
[1758088525487,896.25282082,235.0,234.99,15.1977551]
[1758088525679,819.65299534,235.0,234.99,35.1977551]
[1758088526076,727.50193354,235.0,234.99,15.6977551]
[1758088526283,695.53305169,235.0,234.99,35.6977551]
[1758088526483,670.0055932,235.0,234.99,15.6977551]
[1758088526681,604.34633135,235.0,234.99,15.6977551]
[1758088527010,473.51220542,235.0,234.99,35.6977551]
[1758088527315,447.98474693,235.0,234.99,15.6977551]
[1758088527624,391.39574461,235.0,234.99,35.6977551]
[1758088527799,338.6759982,235.0,234.99,35.6977551]
[1758088527987,313.14853971,235.0,234.99,35.6977551]
[1758088528491,0.03,235.02,235.01,53.87991715]
[1758088528687,0.03,235.02,235.01,60.8946207]
[1758088528881,0.87,235.09,235.08,20.0]
[1758088529186,0.87,235.09,235.08,54.52432314]
[1758088529590,0.87,235.09,235.08,54.24]
[1758088530390,0.87,235.09,235.08,20.0]
[1758088530902,0.87,235.09,235.08,54.28]
[1758088533994,0.2,235.09,235.08,54.28]
[1758088534888,0.87,235.09,235.08,54.28]
[1758088539810,0.87,235.09,235.08,20.0]
[1758088541000,4.25387102,235.08,235.06,54.22]
[1758088541208,0.67,235.07,235.06,20.0]
[1758088543510,0.67,235.07,235.04,19.28]
[1758088543511,15.55918194,235.07,235.04,19.28]
[1758088543717,14.88918194,235.07,235.04,19.28]
[1758088544294,0.67,235.06,235.04,19.28]
[1758088544521,0.2,235.09,234.95,0.14216157]
[1758088544522,0.2,235.09,235.08,19.28]
[1758088544817,0.2,235.09,235.08,70.65423304]
[1758088545389,0.2,235.09,235.08,74.90810406]
[1758088545696,0.2,235.19,235.13,0.28432314]
[1758088545892,0.2,235.19,235.18,19.28]
[1758088546109,0.2,235.19,235.18,54.14]
[1758088547919,0.87,235.19,235.18,54.14]
[1758088549392,0.87,235.19,235.18,54.42432314]
[1758088549393,0.2,235.19,235.18,54.42432314]
[1758088549706,0.87,235.19,235.18,54.14]
[1758088551143,0.2,235.19,235.18,54.14]
[1758088551429,0.87,235.19,235.18,54.14]
[1758088553419,0.87,235.19,235.18,19.28]
[1758088554013,0.2,235.19,235.18,53.98]
[1758088554215,0.2,235.19,235.18,54.26432314]
[1758088555432,0.2,235.19,235.18,56.99863903]
[1758088555644,0.2,235.19,235.18,70.59423304]
[1758088555838,0.2,235.19,235.18,68.53991715]
[1758088556710,0.2,235.19,235.18,70.59423304]
[1758088557311,0.1,235.26,235.18,70.59423304]
[1758088557312,0.1,235.26,235.25,19.42216157]
[1758088557531,0.1,235.26,235.25,54.26432314]
[1758088557911,0.1,235.26,235.25,53.98]
[1758088558226,0.79,235.26,235.25,53.98]
[1758088559217,0.1,235.26,235.25,53.98]
[1758088560738,0.1,235.26,235.25,54.26432314]
[1758088560940,0.1,235.26,235.25,54.94432314]
[1758088561648,0.1,235.26,235.25,70.59423304]
[1758088562008,0.1,235.26,235.25,68.53991715]
[1758088562225,0.1,235.26,235.25,70.59423304]
[1758088562549,0.1,235.26,235.25,68.53991715]
[1758088562867,0.1,235.26,235.25,70.59423304]
[1758088565118,0.1,235.26,235.25,67.26425443]
[1758088565440,0.1,235.26,235.25,67.32425443]
[1758088565608,0.1,235.26,235.25,54.04]
[1758088566327,0.1,235.26,235.25,54.18216157]
[1758088566517,0.1,235.26,235.25,54.32432314]
[1758088569444,0.1,235.26,235.25,54.04]
[1758088569625,0.79,235.26,235.25,54.04]
[1758088569829,0.2,235.29,235.28,58.87559401]
[1758088570051,0.2,235.29,235.28,45.56432314]
[1758088570245,0.2,235.29,235.28,54.36]
[1758088570446,0.89,235.29,235.28,54.36]
[1758088571264,0.89,235.29,235.28,19.28]
[1758088574983,4.25025501,235.28,235.26,19.28]
[1758088575155,13.59559401,235.26,235.2,19.28]
[1758088575353,0.69,235.25,235.23,19.28]
[1758088575679,62.12716761,235.28,235.23,19.28]
[1758088575680,0.69,235.24,235.23,19.28]
[1758088576352,0.69,235.24,235.19,19.34]
[1758088576547,26.69,235.23,235.19,19.34]
[1758088576748,0.69,235.22,235.19,19.34]
[1758088576948,4.25170068,235.2,235.19,0.06]
[1758088577358,4.94170068,235.2,235.19,0.06]
[1758088577977,4.94170068,235.2,235.19,19.34]
[1758088578175,4.25141461,235.22,235.19,19.34]
[1758088578356,0.69,235.21,235.19,19.34]
[1758088578553,0.69,235.2,235.19,19.34]
[1758088578768,14.87976253,235.22,235.19,19.34]
[1758088579084,4.94170068,235.2,235.19,19.34]
[1758088579593,4.94170068,235.2,235.19,0.06]
[1758088580185,30.94170068,235.2,235.19,0.06]
[1758088580478,44.53729469,235.2,235.19,0.06]
[1758088580787,79.67729469,235.2,235.19,0.06]
[1758088582550,44.53729469,235.2,235.19,0.06]
[1758088582751,79.65729469,235.2,235.19,0.06]
[1758088583175,4.94170068,235.2,235.19,0.06]
[1758088583889,39.59559401,235.22,235.19,0.06]
[1758088584082,78.92695501,235.22,235.19,0.06]
[1758088584296,0.69,235.2,235.19,0.06]
[1758088584586,18.53729469,235.2,235.19,0.06]
[1758088585981,13.59559401,235.19,235.15,19.28]
[1758088586292,35.04,235.18,235.15,19.28]
[1758088586460,0.7,235.17,235.15,19.28]
[1758088586660,4.25242388,235.16,235.15,19.28]
[1758088587087,4.95242388,235.16,235.15,19.28]
[1758088588371,4.25242388,235.16,235.15,19.28]
[1758088589884,4.95242388,235.16,235.15,19.28]
[1758088590192,13.59559401,235.15,235.12,19.28]
[1758088590392,0.7,235.14,235.13,19.28]
[1758088590593,0.7,235.14,235.1,19.28]
[1758088590894,48.55559401,235.15,235.13,19.28]
[1758088591095,4.25278557,235.14,235.13,19.28]
[1758088591395,15.5847495,235.14,235.13,19.28]
[1758088591970,15.5847495,235.14,235.1,19.28]
[1758088592262,15.5847495,235.14,235.05,0.67]
[1758088592263,49.8047495,235.14,235.13,19.28]
[1758088592685,4.95278557,235.14,235.13,19.28]
[1758088592880,12.78145837,235.24,235.16,26.0]
[1758088593087,0.7,235.27,235.17,4.92216812]
[1758088593287,4.28075793,235.26,235.17,4.92216812]
[1758088593669,4.28075793,235.26,235.18,2.72431589]
[1758088593869,4.28075793,235.26,235.18,1.98309897]
[1758088594175,4.28075793,235.26,235.25,19.28]
[1758088594378,4.98075793,235.26,235.22,19.28]
[1758088594578,4.28075793,235.26,235.25,19.28]
[1758088594968,4.98075793,235.26,235.2,19.28]
[1758088595295,4.98075793,235.26,235.25,19.28]
[1758088597495,15.60729877,235.26,235.23,19.28]
[1758088597817,15.60729877,235.26,235.25,19.28]
[1758088599095,0.03,235.26,235.25,19.95]
[1758088599702,0.2,235.29,235.28,19.28]
[1758088600398,0.2,235.29,235.28,19.95]
[1758088602096,0.2,235.29,235.28,23.31726473]
[1758088602499,0.23,235.29,235.28,23.31726473]
[1758088604705,0.23,235.29,235.28,49.60158787]
[1758088608005,0.23,235.29,235.28,46.23432314]
[1758088610277,0.23,235.29,235.28,20.23432314]
[1758088610474,0.23,235.29,235.28,46.23432314]
[1758088610677,0.23,235.29,235.28,20.23432314]
[1758088611480,0.23,235.29,235.28,46.23432314]
[1758088611879,0.23,235.29,235.28,20.23432314]
[1758088612608,0.23,235.29,235.28,55.81432314]
[1758088619282,0.23,235.29,235.28,55.14432314]
[1758088619488,0.2,235.39,235.38,19.28]
[1758088619783,0.88,235.39,235.38,54.66]
[1758088621806,0.2,235.39,235.38,54.66]
[1758088622284,0.2,235.39,235.38,55.63432314]
[1758088622488,0.2,235.39,235.38,54.94432314]
[1758088622698,0.2,235.39,235.38,54.62]
[1758088623095,0.2,235.39,235.38,54.90432314]
[1758088623395,0.2,235.39,235.38,55.59432314]
[1758088623724,0.2,235.39,235.38,54.90432314]
[1758088624688,0.2,235.39,235.38,54.62]
[1758088624885,0.2,235.39,235.38,54.56]
[1758088625090,0.2,235.39,235.38,54.84432314]
[1758088627115,0.2,235.39,235.38,55.53432314]
[1758088627983,0.2,235.39,235.38,69.12991715]
[1758088629990,0.2,235.49,235.48,19.28]
[1758088630194,0.2,235.49,235.48,54.44]
[1758088630709,0.88,235.49,235.48,54.44]
[1758088630912,0.2,235.49,235.48,54.44]
[1758088631505,0.2,235.49,235.48,54.72432314]
[1758088633092,0.2,235.49,235.48,69.00991715]
[1758088634190,1e-08,235.49,235.48,69.00991715]
[1758088634391,0.1,235.53,235.48,69.00991715]
[1758088634392,1e-08,235.53,235.52,58.87559401]
[1758088634588,1e-08,235.53,235.52,114.68450954]
[1758088634817,0.2,235.59,235.58,19.28]
[1758088635116,0.2,235.59,235.58,54.66432314]
[1758088635318,0.88,235.59,235.58,54.66432314]
[1758088635502,0.88,235.59,235.58,19.28]
[1758088635701,0.88,235.59,235.58,53.64]
[1758088635902,0.88,235.59,235.58,53.66]
[1758088636296,0.88,235.59,235.58,17.84]
[1758088637092,0.2,235.59,235.58,17.84]
[1758088637316,0.88,235.59,235.58,17.84]
[1758088639424,0.88,235.59,235.58,52.88]
[1758088640522,0.2,235.59,235.58,52.88]
[1758088641102,0.2,235.59,235.58,17.9]
[1758088641405,0.91,235.59,235.58,17.9]
[1758088641617,0.91,235.59,235.58,52.92]
[1758088642642,4.24484251,235.58,235.56,35.06]
[1758088642801,4.24484251,235.58,235.54,52.88]
[1758088642802,0.68,235.57,235.54,52.88]
[1758088642996,0.68,235.56,235.54,52.88]
[1758088643199,0.68,235.55,235.54,52.88]
[1758088643821,14.8569488,235.58,235.54,17.84]
[1758088644023,4.24484251,235.58,235.56,17.84]
[1758088644341,4.24484251,235.58,235.57,35.02]
[1758088644532,4.92484251,235.58,235.57,35.02]
[1758088644914,4.24484251,235.58,235.57,35.02]
[1758088645374,4.95484251,235.58,235.57,35.02]
[1758088645928,4.95484251,235.58,235.54,52.84]
[1758088646139,4.24484251,235.58,235.57,17.84]
[1758088646543,14.8569488,235.58,235.57,17.84]
[1758088646859,15.5669488,235.58,235.57,17.84]
[1758088647256,14.8569488,235.58,235.57,17.84]